{"text_format":"1","workbook":"xlsx","n_sheets":2,"sheets":["Было","Стало"],"not_rendered":{"charts":0,"images":0,"macros":1,"external_links":7,"defined_names":2629,"comments":0,"pivot_tables":0},"unopened":[],"bounds":{"document_bytes":16777216,"sheet_cells":100000,"rows_first":2000,"rows_last":500,"rows_between":2000,"halvings":0,"cell_chars":16384,"cell_head_chars":4096},"cells_cut":0,"cells_raw":0,"read":"whole","date_system":"1900"}

{"sheet":"Было","index":0,"n_rows":53,"n_cols":18,"rows_kept":53,"cut":false,"hidden":false,"merged":[[25,12,26,12],[30,6,30,10],[11,4,11,5],[12,4,12,5],[13,4,13,5],[17,2,17,5],[17,6,17,10],[18,12,18,17],[10,4,10,5],[10,6,10,7],[10,8,10,9],[25,10,26,10],[25,11,26,11],[7,0,9,0],[7,1,7,3],[7,4,7,9],[7,10,8,11],[7,12,7,16],[8,8,9,9],[8,12,8,13],[8,14,8,15],[7,17,8,17],[8,1,9,2],[8,3,9,3],[8,4,9,5],[8,6,9,7],[5,8,5,10],[1,14,1,17],[2,14,2,15],[2,16,2,17],[3,14,3,15],[3,16,3,17]]}
[null,null,null,null,null,null,"наименование / description",null,null,null,null,null,null,null,null,"наименование / description"]
[null,null,null,null,null,null,null,null,null,null,null,null,null,null,"Отчетный период / Reporting Period"]
[null,null,null,null,null,null,null,null,null,null,null,null,null,null,"с / from",null,"по / to"]
[null,null,null,null,null,null,null,null,null,null,null,null,null,null,"2024-09-01",null,"2024-09-30"]
[null,null,null,null,null,null,null,null,null,null,"Первичный Акт № 7-5-45-522-209-1-(RS) / Initial Act No 7-5-45-522-209-1-(RS)"]
[null,null,null,null,null,null,null,"за / for","Сентябрь / September",null,null,"год / year",2024]
[]
["№\nпп","Чертеж/Элемент / Drawing/Element",null,null,"Единичная расценка / Unit Rate",null,null,null,null,null,"Физ объем по рабочей документации, выданной в производство работ / \nQuantities as per IFC documentation",null,"Выполнено работ / Works performed",null,null,null,null,"Остаток/\nCarryover"]
[null,"Номер чертежа / Number of drawing\nНаименование элемента / Name of element",null,"Количество, шт.\n/ Quantity, pcs","Шифр / Code",null,"Наименование / Name",null,"Единица измерения / \nUnit of measurement",null,null,null,"Выполнено и принято ранее/\nDone and accepted earlier",null,"Фактчиески выполненный и подтвержденный объем исполниельной документацией физ.объем за отчетный месяц /\nWork physically performed for the reporting month and confirmed by as-built documentation",null,"Выполнено всего/\nWork performed in total"]
[null,null,null,null,null,null,null,null,null,null,"на элемент /\nper element","Всего физ.объем /\nper total quantity","элементов, шт. / element, pcs","физ.объем / quantity","элементов, шт. / element, pcs","физ.объем / quantity","физ.объем / quantity","физ.объем / quantity"]
[1,2,null,3,4,null,5,null,6,null,7,8,9,10,11,12,13,14]
[29,"0055-4.1.1.29.551-KM15/0055-4.1.1.29.551-KM15.OD-0001(PC)","Прогон",1,"WHE8A1C01_8<=DN<=12",null,"Монтаж металлоконструкций с болтовыми соединениями","Erection of bolted steel structures","кг","kg",4378.28,4378.28,0,0,{"$f":"ROUND(P12/K12,2)","v":0.85},3721.53,{"$f":"N12+P12","v":3721.53},{"$f":"L12-Q12","v":656.74999999999955}]
[30,"0055-4.1.1.29.551-KM15/0055-4.1.1.29.551-KM15.OD-0001(PC)","Монтажный элемент",1,"WHE8A1C01_8<=DN<=12",null,"Монтаж металлоконструкций с болтовыми соединениями","Erection of bolted steel structures","кг","kg",38.840000000000003,38.840000000000003,0,0,0.85,33.01,33.01,5.8300000000000054]
[31,"0055-4.1.1.29.551-KM15/0055-4.1.1.29.551-KM15.OD-0001(PC)","Вертикальная связь",1,"WHE8A1C01_8<=DN<=12",null,"Монтаж металлоконструкций с болтовыми соединениями","Erection of bolted steel structures","кг","kg",16.98,16.98,0,0,0.85,14.43,14.43,2.5500000000000007]
["ИТОГО/TOTAL",null,null,null,null,null,null,null,null,null,{"$f":"SUM(K12:K14)","v":4434.0999999999995},4434.0999999999995,0,0,2.5499999999999998,3768.9700000000003,3768.9700000000003,665.12999999999954]
[]
[]
[null,"Подтверждено / Confirmed:","от С-подрядчика / Construction Contractor"]
[]
[]
[null,"Подтверждено:"]
[null,null,"от Генподрядчика / General Contractor"]
[null,null,"Направление организации строительства"]
[null,"Подтверждено:"]
[null,null,"от Генподрядчика / General Contractor"]
[null,null,"Производственно-техническое управление",null,null,null,null,null,null,null,"Цена за единицу, руб. / \nPrice per unit, rub.","Объем работ по РД, выданной «в производство работ» / Quantities of Detailed Design Issued for Construction","Стоимость работ по РД, выданной в производство работ, руб. / Total Cost of Detailed Design Issued for Construction, rub."]
[null,"Подтверждено:"]
[null,null,"от Генподрядчика / General Contractor"]
[null,null,"Направление строительного контроля"]
[null,"Согласовано:"]
[null,null,"от Заказчика / Owner"]
[null,null,null,null,null,"L","Изоляционные работы","Insulation works"]
[null,null,null,null,null,"LHC","ТЕПЛОИЗОЛЯЦИЯ ДЛЯ ОБОРУДОВАНИЯ","HOT INSULATION FOR EQUIPMENT"]
["4.1.1.29.551+51+LHCR10G_ExtDiaupto1250mm_40","L","LHC","",{"$f":"IF(I34=\"\",\"\",MAX(E32:E33)+1)","v":1},"LHCR10G_ExtDiaupto1250mm_40","Монтаж металлоконструкций с болтовыми соединениями","Erection of bolted steel structures","кг","kg"]
[null,null,null,null,null,"LHC",{"$f":"CONCATENATE(\"ИТОГО по Дисциплине \",F35,\" / Total for Discipline \",F35,\":\")","v":"ИТОГО по Дисциплине LHC / Total for Discipline LHC:"}]
[null,null,null,null,null,"M","Механика","Mechanical"]
[null,null,null,null,null,"MF3","Неразрушающий контроль","Non destructive test"]
["4.1.1.29.551+51+MF3X50000_10_0","M","MF3","",{"$f":"IF(I38=\"\",\"\",MAX(E34:E37)+1)","v":2},"MF3X50000_10_0","Монтаж металлоконструкций с болтовыми соединениями","Erection of bolted steel structures","кг","kg"]
[null,null,null,null,null,"MF3",{"$f":"CONCATENATE(\"ИТОГО по Дисциплине \",F39,\" / Total for Discipline \",F39,\":\")","v":"ИТОГО по Дисциплине MF3 / Total for Discipline MF3:"}]
[null,null,null,null,null,"M","Механика","Mechanical"]
[null,null,null,null,null,"MF3","Неразрушающий контроль","Non destructive test"]
["4.1.1.29.551+51+MF3X50000_12_0","M","MF3","",{"$f":"IF(I42=\"\",\"\",MAX(E38:E41)+1)","v":3},"MF3X50000_12_0","Монтаж поручней из стальных труб","Installation of steel tubing handrails","кг","kg"]
[null,null,null,null,null,"MF3",{"$f":"CONCATENATE(\"ИТОГО по Дисциплине \",F43,\" / Total for Discipline \",F43,\":\")","v":"ИТОГО по Дисциплине MF3 / Total for Discipline MF3:"}]
[null,null,null,null,null,"NN","Электромонтажные работы","Electrical works"]
[null,null,null,null,null,"NN08","Монтаж системы катодной защиты  (ПРИМЕНИМО ТОЛЬКО ДЛЯ ТЕХНОЛОГИЧЕСКИХ УСТАНОВОК)","Cathodic protection system (APPLICABLE ONLY FOR PROCESS UNITS) installation"]
["4.1.1.29.551+51+NN08GA03EX","NN","NN08","",{"$f":"IF(I46=\"\",\"\",MAX(E42:E45)+1)","v":4},"NN08GA03EX","Монтаж стальных решеток и лестничных ступеней","Installation of steel gratings & stair treads","кг","kg"]
[null,null,null,null,null,"NN08",{"$f":"CONCATENATE(\"ИТОГО по Дисциплине \",F47,\" / Total for Discipline \",F47,\":\")","v":"ИТОГО по Дисциплине NN08 / Total for Discipline NN08:"}]
[null,null,null,null,null,"W","Электромонтажные работы","Electrical works"]
[null,null,null,null,null,"WH","Окраска труб","Painting for piping"]
["4.1.1.29.551+51+WHE8A1C01_8<=DN<=12","W","WH","",{"$f":"IF(I50=\"\",\"\",MAX(E46:E49)+1)","v":5},"WHE8A1C01_8<=DN<=12","Монтаж металлоконструкций с болтовыми соединениями","Erection of bolted steel structures","кг","kg"]
[null,null,null,null,null,"WH",{"$f":"CONCATENATE(\"ИТОГО по Дисциплине \",F51,\" / Total for Discipline \",F51,\":\")","v":"ИТОГО по Дисциплине WH / Total for Discipline WH:"}]
[]
[null,null,null,null,null,{"$f":"JoinWithoutDuplicates(B31:B53,\", \")","v":"L, M, NN, W"},{"$f":"CONCATENATE(\"ИТОГО по Дисциплине \",F64,\" / Total for Discipline \",F64,\":\")","v":"ИТОГО по Дисциплине  / Total for Discipline :"}]

{"sheet":"Стало","index":1,"n_rows":53,"n_cols":18,"rows_kept":53,"cut":false,"hidden":false,"merged":[[25,12,26,12],[30,6,30,10],[11,4,11,5],[12,4,12,5],[13,4,13,5],[17,2,17,5],[17,6,17,10],[18,12,18,17],[10,4,10,5],[10,6,10,7],[10,8,10,9],[25,10,26,10],[25,11,26,11],[7,0,9,0],[7,1,7,3],[7,4,7,9],[7,10,8,11],[7,12,7,16],[8,8,9,9],[8,12,8,13],[8,14,8,15],[7,17,8,17],[8,1,9,2],[8,3,9,3],[8,4,9,5],[8,6,9,7],[5,8,5,10],[1,14,1,17],[2,14,2,15],[2,16,2,17],[3,14,3,15],[3,16,3,17]]}
[null,null,null,null,null,null,"наименование / description",null,null,null,null,null,null,null,null,"наименование / description"]
[null,null,null,null,null,null,null,null,null,null,null,null,null,null,"Отчетный период / Reporting Period"]
[null,null,null,null,null,null,null,null,null,null,null,null,null,null,"с / from",null,"по / to"]
[null,null,null,null,null,null,null,null,null,null,null,null,null,null,"2024-09-01",null,"2024-09-30"]
[null,null,null,null,null,null,null,null,null,null,"Первичный Акт № 7-5-45-522-209-1-(RS) / Initial Act No 7-5-45-522-209-1-(RS)"]
[null,null,null,null,null,null,null,"за / for","Сентябрь / September",null,null,"год / year",2024]
[]
["№\nпп","Чертеж/Элемент / Drawing/Element",null,null,"Единичная расценка / Unit Rate",null,null,null,null,null,"Физ объем по рабочей документации, выданной в производство работ / \nQuantities as per IFC documentation",null,"Выполнено работ / Works performed",null,null,null,null,"Остаток/\nCarryover"]
[null,"Номер чертежа / Number of drawing\nНаименование элемента / Name of element",null,"Количество, шт.\n/ Quantity, pcs","Шифр / Code",null,"Наименование / Name",null,"Единица измерения / \nUnit of measurement",null,null,null,"Выполнено и принято ранее/\nDone and accepted earlier",null,"Фактчиески выполненный и подтвержденный объем исполниельной документацией физ.объем за отчетный месяц /\nWork physically performed for the reporting month and confirmed by as-built documentation",null,"Выполнено всего/\nWork performed in total"]
[null,null,null,null,null,null,null,null,null,null,"на элемент /\nper element","Всего физ.объем /\nper total quantity","элементов, шт. / element, pcs","физ.объем / quantity","элементов, шт. / element, pcs","физ.объем / quantity","физ.объем / quantity","физ.объем / quantity"]
[1,2,null,3,4,null,5,null,6,null,7,8,9,10,11,12,13,14]
[29,"0055-4.1.1.29.551-KM15/0055-4.1.1.29.551-KM15.OD-0001(PC)","Прогон",1,"WHE8A1C01_8<=DN<=12",null,"Монтаж металлоконструкций с болтовыми соединениями","Erection of bolted steel structures","кг","kg",4378.28,4378.28,0,0,{"$f":"ROUND(P12/K12,2)","v":0.85},3721.53,{"$f":"N12+P12","v":3721.53},{"$f":"L12-Q12","v":656.74999999999955}]
[30,"0055-4.1.1.29.551-KM15/0055-4.1.1.29.551-KM15.OD-0001(PC)","Монтажный элемент",1,"WHE8A1C01_8<=DN<=12",null,"Монтаж металлоконструкций с болтовыми соединениями","Erection of bolted steel structures","кг","kg",38.840000000000003,38.840000000000003,0,0,0.85,33.01,33.01,5.8300000000000054]
[31,"0055-4.1.1.29.551-KM15/0055-4.1.1.29.551-KM15.OD-0001(PC)","Вертикальная связь",1,"WHE8A1C01_8<=DN<=12",null,"Монтаж металлоконструкций с болтовыми соединениями","Erection of bolted steel structures","кг","kg",16.98,16.98,0,0,0.85,14.43,14.43,2.5500000000000007]
["ИТОГО/TOTAL",null,null,null,null,null,null,null,null,null,{"$f":"SUM(K12:K14)","v":4434.0999999999995},4434.0999999999995,0,0,2.5499999999999998,3768.9700000000003,3768.9700000000003,665.12999999999954]
[]
[]
[null,"Подтверждено / Confirmed:","от С-подрядчика / Construction Contractor"]
[]
[]
[null,"Подтверждено:"]
[null,null,"от Генподрядчика / General Contractor"]
[null,null,"Направление организации строительства"]
[null,"Подтверждено:"]
[null,null,"от Генподрядчика / General Contractor"]
[null,null,"Производственно-техническое управление",null,null,null,null,null,null,null,"Цена за единицу, руб. / \nPrice per unit, rub.","Объем работ по РД, выданной «в производство работ» / Quantities of Detailed Design Issued for Construction","Стоимость работ по РД, выданной в производство работ, руб. / Total Cost of Detailed Design Issued for Construction, rub."]
[null,"Подтверждено:"]
[null,null,"от Генподрядчика / General Contractor"]
[null,null,"Направление строительного контроля"]
[null,"Согласовано:"]
[null,null,"от Заказчика / Owner"]
[null,null,null,null,null,"L","Изоляционные работы","Insulation works"]
[null,null,null,null,null,"LHC","ТЕПЛОИЗОЛЯЦИЯ ДЛЯ ОБОРУДОВАНИЯ","HOT INSULATION FOR EQUIPMENT"]
["4.1.1.29.551+51+LHCR10G_ExtDiaupto1250mm_40","L","LHC","",{"$f":"IF(I34=\"\",\"\",MAX(E32:E33)+1)","v":1},"LHCR10G_ExtDiaupto1250mm_40","Монтаж металлоконструкций с болтовыми соединениями","Erection of bolted steel structures","кг","kg"]
[null,null,null,null,null,"LHC",{"$f":"CONCATENATE(\"ИТОГО по Дисциплине \",F35,\" / Total for Discipline \",F35,\":\")","v":"ИТОГО по Дисциплине LHC / Total for Discipline LHC:"}]
[null,null,null,null,null,"M","Механика","Mechanical"]
[null,null,null,null,null,"MF3","Неразрушающий контроль","Non destructive test"]
["4.1.1.29.551+51+MF3X50000_10_0","M","MF3","",{"$f":"IF(I38=\"\",\"\",MAX(E34:E37)+1)","v":2},"MF3X50000_10_0","Монтаж металлоконструкций с болтовыми соединениями","Erection of bolted steel structures","кг","kg"]
[null,null,null,null,null,"MF3",{"$f":"CONCATENATE(\"ИТОГО по Дисциплине \",F39,\" / Total for Discipline \",F39,\":\")","v":"ИТОГО по Дисциплине MF3 / Total for Discipline MF3:"}]
[null,null,null,null,null,"M","Механика","Mechanical"]
[null,null,null,null,null,"MF3","Неразрушающий контроль","Non destructive test"]
["4.1.1.29.551+51+MF3X50000_12_0","M","MF3","",{"$f":"IF(I42=\"\",\"\",MAX(E38:E41)+1)","v":3},"MF3X50000_12_0","Монтаж поручней из стальных труб","Installation of steel tubing handrails","кг","kg"]
[null,null,null,null,null,"MF3",{"$f":"CONCATENATE(\"ИТОГО по Дисциплине \",F43,\" / Total for Discipline \",F43,\":\")","v":"ИТОГО по Дисциплине MF3 / Total for Discipline MF3:"}]
[null,null,null,null,null,"NN","Электромонтажные работы","Electrical works"]
[null,null,null,null,null,"NN08","Монтаж системы катодной защиты  (ПРИМЕНИМО ТОЛЬКО ДЛЯ ТЕХНОЛОГИЧЕСКИХ УСТАНОВОК)","Cathodic protection system (APPLICABLE ONLY FOR PROCESS UNITS) installation"]
["4.1.1.29.551+51+NN08GA03EX","NN","NN08","",{"$f":"IF(I46=\"\",\"\",MAX(E42:E45)+1)","v":4},"NN08GA03EX","Монтаж стальных решеток и лестничных ступеней","Installation of steel gratings & stair treads","кг","kg"]
[null,null,null,null,null,"NN08",{"$f":"CONCATENATE(\"ИТОГО по Дисциплине \",F47,\" / Total for Discipline \",F47,\":\")","v":"ИТОГО по Дисциплине NN08 / Total for Discipline NN08:"}]
[null,null,null,null,null,"W","Электромонтажные работы","Electrical works"]
[null,null,null,null,null,"WH","Окраска труб","Painting for piping"]
["4.1.1.29.551+51+WHE8A1C01_8<=DN<=12","W","WH","",{"$f":"IF(I50=\"\",\"\",MAX(E46:E49)+1)","v":5},"WHE8A1C01_8<=DN<=12","Монтаж металлоконструкций с болтовыми соединениями","Erection of bolted steel structures","кг","kg"]
[null,null,null,null,null,"WH",{"$f":"CONCATENATE(\"ИТОГО по Дисциплине \",F51,\" / Total for Discipline \",F51,\":\")","v":"ИТОГО по Дисциплине WH / Total for Discipline WH:"}]
[]
[null,null,null,null,null,"L, M, NN, W",{"$f":"CONCATENATE(\"ИТОГО по Дисциплине \",F53,\" / Total for Discipline \",F53,\":\")","v":"ИТОГО по Дисциплине L, M, NN, W / Total for Discipline L, M, NN, W:"}]